fUST/lending_fUST_20240515
["ID","MTS","AMOUNT","RATE_DAILY","PERIOD"]
[327054289,1715749836120,-150.5,0.00026291,35]
[327054290,1715749836130,-309.0,0.00026291,35]
[327054291,1715749836139,-278.42,0.00026291,35]
[327054292,1715749836150,-156.693943,0.00026295,2]
[327054293,1715749836159,-244.103865,0.00026295,2]
[327054294,1715749836169,-244.103865,0.00026295,2]
[327054295,1715749836180,-151.0,0.00026295,2]
[327054296,1715749836190,-151.0,0.00026295,2]
[327054297,1715749836200,-151.0,0.00026295,2]
[327054298,1715749836209,-254.78695,0.00026295,2]
[327054299,1715749836219,-151.0,0.00026295,2]
[327054300,1715749836228,-955.102004,0.00026295,2]
[327054301,1715749836238,-955.102004,0.00026295,2]
[327054302,1715749836252,-524.487666,0.00026295,2]
[327054303,1715749836262,-500.410451,0.00026295,2]
[327054304,1715749836271,-524.487666,0.00026295,2]
[327054305,1715749836281,-500.410451,0.00026295,2]
[327054306,1715749836291,-687.127765,0.00026295,2]
[327054307,1715749836300,-687.127765,0.00026295,2]
[327054308,1715749836310,-151.0,0.00026295,2]
[327054309,1715749836319,-3037.59,0.00026295,2]
[327054310,1715749836328,-3037.59,0.00026295,2]
[327054311,1715749836337,-3037.59,0.00026295,2]
[327054312,1715749836346,-3037.59,0.00026295,2]
[327054313,1715749836359,-3037.59,0.00026295,2]
[327054314,1715749836368,-3037.59,0.00026295,2]
[327054315,1715749836380,-3037.59,0.00026295,2]
[327054316,1715749836390,-3037.59,0.00026295,2]
[327054317,1715749836399,-3037.61191134,0.00026295,2]
[327054318,1715749836409,-151.0,0.00026295,2]
[327054319,1715749836419,-211.095288,0.00026295,2]
[327054320,1715749836429,-327587.14210522,0.00026296,2]
[327054326,1715749839680,154.82968734,9.999e-05,2]
[327054347,1715749840649,-803.06229878,0.00018644,2]
[327054348,1715749840659,-2106.56360216,0.00018644,2]
[327054349,1715749840668,-408.09007525,0.00024453,2]
[327054350,1715749840678,-1049.30507103,0.00024599,2]
[327054351,1715749840692,-1638.44198359,0.00024599,2]
[327054352,1715749840701,-29799.08163177,0.00026295,3]
[327054353,1715749840711,-188258.58761006,0.00026296,2]
[327054354,1715749840724,-2236.21874578,0.00026296,2]
[327054355,1715749840792,-427.63664462,0.00026296,2]
[327054374,1715749843555,-265.71367591,0.00025204,2]
[327054375,1715749843565,-29510.36030207,0.00026296,2]
[327054376,1715749843575,-1795.25189914,0.00026296,2]
[327054377,1715749843584,-198.345706,0.00026296,2]
[327054378,1715749843594,-151.0,0.00026296,2]
[327054379,1715749843603,-151.0,0.00026296,2]
[327054380,1715749843615,-151.0,0.00026296,2]
[327054381,1715749843626,-176.235748,0.00026296,2]
[327054382,1715749843636,-176.235748,0.00026296,2]
[327054383,1715749843646,-151.0,0.00026296,2]
[327054384,1715749843656,-151.0,0.00026296,2]
[327054385,1715749843666,-151.0,0.00026296,2]
[327054386,1715749843675,-718.538092,0.00026296,2]
[327054387,1715749843685,-718.538092,0.00026296,2]
[327054388,1715749843695,-151.525694,0.00026296,2]
[327054389,1715749843705,-151.0,0.00026296,2]
[327054390,1715749843715,-320.453189,0.00026296,2]
[327054391,1715749843724,-320.453189,0.00026296,2]
[327054392,1715749843733,-244.103865,0.00026296,2]
[327054393,1715749843743,-244.103865,0.00026296,2]
[327054394,1715749843752,-155.363569,0.00026296,2]
[327054395,1715749843763,-151.0,0.00026296,2]
[327054396,1715749843773,-151.0,0.00026296,2]
[327054397,1715749843782,-955.102004,0.00026296,2]
[327054399,1715749843792,-955.102004,0.00026296,2]
[327054401,1715749843801,-524.487666,0.00026296,2]
[327054403,1715749843811,-500.410451,0.00026296,2]
[327054405,1715749843822,-524.487666,0.00026296,2]
[327054407,1715749843832,-500.410451,0.00026296,2]
[327054409,1715749843847,-687.127765,0.00026296,2]
[327054410,1715749843857,-687.127765,0.00026296,2]
[327054411,1715749843873,-151.0,0.00026296,2]
[327054412,1715749843885,-151.0,0.00026296,2]
[327054413,1715749843895,-1411.8263769,0.000263,3]
[327054414,1715749843904,-1076.77,0.00026301,2]
[327054415,1715749843914,-500.0,0.00026301,2]
[327054416,1715749843925,-500.0,0.00026301,2]
[327054417,1715749843935,-500.0,0.00026301,2]
[327054418,1715749843944,-254.06495045,0.00026301,2]
[327054419,1715749843954,-500.0,0.00026301,2]
[327054420,1715749843963,-507.57914245,0.00026301,2]
[327054421,1715749843973,-500.0,0.00026301,2]
[327054422,1715749843982,-500.0,0.00026301,2]
[327054423,1715749843992,-587.04727514,0.00026301,2]
[327054424,1715749844001,-500.0,0.00026301,2]
[327054425,1715749844011,-500.0,0.00026301,2]
[327054426,1715749844021,-505.91475517,0.00026301,2]
[327054427,1715749844030,-500.0,0.00026301,2]
[327054428,1715749844040,-828.37,0.00026301,2]
[327054429,1715749844049,-500.0,0.00026301,2]
[327054430,1715749844058,-502.68129376,0.00026301,2]
[327054431,1715749844067,-500.0,0.00026301,2]
[327054432,1715749844076,-611.41908951,0.00026301,2]
[327054433,1715749844085,-500.0,0.00026301,2]
[327054434,1715749844094,-503.39822017,0.00026301,2]
[327054435,1715749844103,-727.51,0.00026301,2]
[327054436,1715749844113,-500.0,0.00026301,2]
[327054437,1715749844125,-500.0,0.00026301,2]
[327054438,1715749844135,-500.0,0.00026301,2]
[327054439,1715749844144,-696.87,0.00026301,2]
[327054440,1715749844153,-745.27,0.00026301,2]
[327054441,1715749844162,-500.0,0.00026301,2]
[327054442,1715749844171,-702.17,0.00026301,2]
[327054443,1715749844181,-504.38627976,0.00026301,2]
[327054444,1715749844191,-500.0,0.00026301,2]
[327054445,1715749844202,-302.37571548,0.00026301,2]
[327054446,1715749844211,-502.51731986,0.00026301,2]
[327054447,1715749844221,-463.35117524,0.00026301,2]
[327054454,1715749861227,2464.26503782,9.999e-05,2]
[327054455,1715749878545,522.94149242,9.999e-05,2]
[327054456,1715749917123,410.26306288,9.999e-05,2]
[327054457,1715750478855,-406.30178098,0.0001889,2]
[327054458,1715750478887,-2113.61592946,0.00018891,2]
[327054459,1715750478924,-531.36807526,0.00018892,2]
[327054460,1715750478957,-607.5672956,0.00018894,2]
[327054996,1715750977914,-406.30178098,0.00018899,2]
[327054997,1715750977946,-531.36807526,0.00018899,2]
[327054998,1715750977978,-633.70183946,0.000189,2]
[327055001,1715750997413,-2113.61592946,0.00018898,2]
[327055044,1715751032557,-180.318127,0.00019178,2]
[327055046,1715751032568,-1633.4672857,0.00019233,2]
[327055048,1715751032578,-165.76807819,0.000199,2]
[327055050,1715751032587,-361.2736101,0.0002,2]
[327055052,1715751032597,-240.12095836,0.0002,2]
[327055054,1715751032606,-230.440659,0.00020009,2]
[327055056,1715751032615,-1236.80017075,0.00021917,2]
[327055058,1715751032625,-166.666666,0.00021918,2]
[327055060,1715751032635,-9369.7662335,0.00021918,2]
[327055062,1715751032644,-513.41767368,0.00022,2]
[327055064,1715751032653,-5234.99145324,0.00022,4]
[327055066,1715751032662,-166.666666,0.00022431,2]
[327055068,1715751032671,-452.2,0.00022718,2]
[327055070,1715751032680,-150.0,0.00022722,2]
[327055072,1715751032689,-166.666666,0.00022944,2]
[327055074,1715751032698,-1000.0,0.00023,2]
[327055075,1715751032707,-166.666666,0.00023456,2]
[327055077,1715751032716,-452.2,0.00023834,3]
[327055079,1715751032725,-150.0,0.00023838,3]
[327055081,1715751032734,-633.70183946,0.000239,2]
[327055083,1715751032744,-166.666666,0.00023969,2]
[327055086,1715751032766,-2115.15328249,0.00024,2]
[327055089,1715751032777,-1000.0,0.00024,2]
[327055091,1715751032788,-13736.52573189,0.00024298,2]
[327055093,1715751032801,-180.22791367,0.00024382,2]
[327055095,1715751032811,-166.666666,0.00024482,2]
[327055097,1715751032821,-1250.2,0.00024656,2]
[327055099,1715751032832,-150.0,0.00024821,2]
[327055101,1715751032841,-292.03540589,0.00024898,2]
[327055103,1715751032851,-47.60734872,0.00024898,2]
[327055105,1715751032866,-116.8814088,0.00024898,2]
[327055107,1715751032878,-358.2329213,0.00024899,2]
[327055109,1715751032888,-270.0,0.00024932,2]
[327055111,1715751032897,-452.2,0.00024951,3]
[327055113,1715751032907,-150.0,0.00024954,3]
[327055115,1715751032916,-1100.47425411,0.00025,2]
[327055117,1715751032926,-1000.0,0.00025,2]
[327055119,1715751032935,-270.0,0.00025,2]
[327055121,1715751032945,-400.55879163,0.00025014,2]
[327055123,1715751032955,-150.0,0.00025015,2]
[327055125,1715751032964,-167.35509674,0.00025076,2]
[327055127,1715751032974,-150.0,0.00025303,2]
[327055129,1715751032983,-150.0,0.00025542,2]
[327055130,1715751032993,-500.0,0.00025578,2]
[327055132,1715751033003,-270.0,0.0002589,2]
[327055134,1715751033012,-1000.0,0.00026,2]
[327055135,1715751033023,-163.97342084,0.00026,2]
[327055137,1715751033033,-1000.0,0.00026,26]
[327055138,1715751033044,-204.2509034,0.00026003,2]
[327055139,1715751033054,-204.2509034,0.00026003,2]
[327055140,1715751033064,-204.2509034,0.00026003,2]
[327055141,1715751033073,-204.2509034,0.00026003,2]
[327055142,1715751033082,-204.2509034,0.00026003,2]
[327055143,1715751033091,-204.2509034,0.00026003,2]
[327055144,1715751033101,-204.2509034,0.00026003,2]
[327055145,1715751033111,-204.2509034,0.00026003,2]
[327055146,1715751033120,-204.2509034,0.00026003,2]
[327055147,1715751033130,-204.2509034,0.00026003,2]
[327055148,1715751033139,-204.2509034,0.00026003,2]
[327055149,1715751033149,-204.2509034,0.00026003,2]
[327055150,1715751033159,-204.2509034,0.00026003,2]
[327055151,1715751033169,-204.2509034,0.00026003,2]
[327055152,1715751033178,-204.2509034,0.00026003,2]
[327055154,1715751033188,-169.7973437,0.00026006,2]
[327055155,1715751033198,-150.0,0.00026011,2]
[327055156,1715751033208,-1250.2,0.00026026,2]
[327055157,1715751033217,-291.13337384,0.00026037,2]
[327055158,1715751033227,-153.0,0.00026057,2]
[327055159,1715751033236,-153.0,0.00026057,2]
[327055160,1715751033247,-153.0,0.00026057,2]
[327055161,1715751033257,-153.0,0.00026057,2]
[327055162,1715751033267,-153.0,0.00026057,2]
[327055163,1715751033276,-153.0,0.00026057,2]
[327055164,1715751033286,-153.0,0.00026057,2]
[327055165,1715751033296,-153.0,0.00026057,2]
[327055166,1715751033306,-153.0,0.00026057,2]
[327055167,1715751033317,-500.0,0.00026069,2]
[327055168,1715751033327,-500.0,0.00026069,2]
[327055169,1715751033336,-500.0,0.00026069,2]
[327055170,1715751033346,-500.0,0.00026069,2]
[327055171,1715751033356,-333.30891175,0.00026069,2]
[327055172,1715751033365,-500.0,0.00026069,2]
[327055173,1715751033375,-500.0,0.00026069,2]
[327055174,1715751033385,-500.0,0.00026069,2]
[327055175,1715751033395,-500.0,0.00026069,2]
[327055176,1715751033404,-500.0,0.00026069,2]
[327055177,1715751033415,-500.0,0.00026069,2]
[327055178,1715751033424,-150.0,0.0002607,3]
[327055179,1715751033434,-412.42153865,0.00026101,2]
[327055180,1715751033445,-412.42153861,0.00026126,2]
[327055181,1715751033644,-2744.93316216,0.00026146,2]
[327055182,1715751033657,-412.42153861,0.00026151,2]
[327055183,1715751033667,-412.42153861,0.00026176,2]
[327055184,1715751033677,-150.0,0.00026189,2]
[327055185,1715751033687,-19632.8,0.00026191,3]
[327055186,1715751033696,-500.0,0.00026198,2]
[327055187,1715751033705,-500.0,0.00026198,2]
[327055188,1715751033714,-159.63021158,0.00026199,2]
[327055189,1715751033724,-406.30178098,0.00026199,2]
[327055190,1715751033734,-2113.61592946,0.00026199,2]
[327055191,1715751033743,-500.0,0.000262,2]
[327055192,1715751033753,-500.0,0.000262,2]
[327055193,1715751033762,-412.42153861,0.00026201,2]
[327055194,1715751033772,-88888.0,0.00026201,3]
[327055195,1715751033782,-338.83306397,0.00026201,2]
[327055271,1715751477424,2324.31,0.00018,2]
[327055278,1715751912085,500.0,0.00018,2]
[327055325,1715752232777,-3693.9906244,0.00018601,2]
[327055326,1715752232787,-406.30178098,0.00018898,2]
[327055328,1715752232796,-531.36807526,0.00018899,2]
[327055329,1715752232806,-211.23394649,0.000189,2]
[327055330,1715752232815,-10445.91088101,0.00019391,2]
[327055331,1715752232825,-2113.61592946,0.00019392,2]
[327055332,1715752232835,-2261.2386177,0.00019405,2]
[327055333,1715752232844,-187.5266915,0.00019814,2]
[327055334,1715752232853,-18085.50088431,0.0002,4]
[327055350,1715752239385,-1914.49911569,0.0002,4]
[327055351,1715752239395,-180.22791367,0.0002002,2]
[327055352,1715752239406,-169.629125,0.00020788,2]
[327055353,1715752239416,-1236.80017075,0.00021999,2]
[327055354,1715752239426,-3323.83323701,0.00022,4]
[327055386,1715752246884,-1911.15821623,0.00022,4]
[327055388,1715752246894,-339.2,0.00022221,2]
[327055390,1715752246903,-150.0,0.00022222,2]
[327055391,1715752246913,-171.68864795,0.00022738,2]
[327055392,1715752246922,-339.2,0.0002319,2]
[327055393,1715752246931,-211.23394649,0.000239,2]
[327055394,1715752246940,-150.0,0.00024016,2]
[327055395,1715752246949,-339.2,0.00024158,3]
[327055396,1715752246958,-157.68849113,0.000245,2]
[327055397,1715752246967,-169.0,0.00024932,2]
[327055398,1715752246977,-500.0,0.00024986,2]
[327055399,1715752246986,-425.92321242,0.00024986,2]
[327055400,1715752246995,-500.0,0.00024986,2]
[327055401,1715752247005,-500.0,0.00024986,2]
[327055402,1715752247015,-270.65334824,0.00024986,2]
[327055403,1715752247024,-500.0,0.00024986,2]
[327055404,1715752247034,-600.0,0.00024986,2]
[327055405,1715752247044,-500.0,0.00024986,2]
[327055406,1715752247053,-130.26311842,0.00024986,2]
[327055407,1715752255273,998.8,0.00018,2]
[327055438,1715752904440,803.06229878,9.999e-05,2]
[327055439,1715752949138,154.82968734,9.999e-05,2]
[327055454,1715753432037,-406.30178098,0.00018895,2]
[327055455,1715753432047,-154.82968734,0.00018895,2]
[327055456,1715753432056,-531.36807526,0.00018896,2]
[327055457,1715753432065,-154.82968734,0.00018897,2]
[327055458,1715753432074,-2113.61592946,0.00018898,2]
[327055459,1715753432084,-150.0,0.000189,2]
[327055460,1715753432094,-499.86264339,0.0002,2]
[327055461,1715753432103,-306.70957245,0.00020519,2]
[327055462,1715753432112,-254.4,0.00021056,2]
[327055463,1715753432122,-5234.99145324,0.00022,4]
[327055464,1715753432131,-254.4,0.00022005,2]
[327055465,1715753432144,-254.4,0.00022955,2]
[327055466,1715753432153,-1236.80017075,0.00023,2]
[327055467,1715753432162,-254.4,0.00023904,3]
[327055468,1715753432172,-150.0,0.00024016,2]
[327055469,1715753432184,-155.8623812,0.00024247,2]
[327055470,1715753432192,-153.0,0.00024247,2]
[327055471,1715753432201,-153.0,0.00024247,2]
[327055472,1715753432214,-153.0,0.00024247,2]
[327055473,1715753432223,-200.2660357,0.00024384,2]
[327055474,1715753432233,-153.0,0.00024658,2]
[327055475,1715753432242,-153.0,0.00024658,2]
[327055477,1715753432251,-153.0,0.00024658,2]
[327055478,1715753432261,-153.0,0.00024658,2]
[327055479,1715753432270,-153.0,0.00024658,2]
[327055480,1715753432280,-2744.93316216,0.00024678,2]
[327055481,1715753432290,-150.0,0.00024748,2]
[327055482,1715753432299,-416.7728428,0.00024759,2]
[327055483,1715753432310,-180.22791367,0.000248,2]
[327055484,1715753432319,-204.2509034,0.00024852,2]
[327055485,1715753432329,-204.2509034,0.00024852,2]
[327055486,1715753432340,-204.2509034,0.00024852,2]
[327055487,1715753432349,-204.2509034,0.00024852,2]
[327055488,1715753432360,-204.2509034,0.00024852,2]
[327055489,1715753432369,-204.2509034,0.00024852,2]
[327055490,1715753432378,-204.2509034,0.00024852,2]
[327055491,1715753432387,-204.2509034,0.00024852,2]
[327055492,1715753432396,-204.2509034,0.00024852,2]
[327055493,1715753432405,-204.2509034,0.00024852,2]
[327055494,1715753432414,-204.2509034,0.00024852,2]
[327055495,1715753432566,-204.2509034,0.00024852,2]
[327055496,1715753432576,-254.4,0.00024854,3]
[327055497,1715753432585,-153.0,0.00024877,2]
[327055498,1715753432595,-153.0,0.00024877,2]
[327055499,1715753432604,-153.0,0.00024877,2]
[327055500,1715753432614,-153.0,0.00024877,2]
[327055501,1715753432623,-153.0,0.00024877,2]
[327055502,1715753432632,-253.96441227,0.00024898,2]
[327055503,1715753432641,-253.96441225,0.00024899,2]
[327055504,1715753432650,-19803.05249225,0.000249,2]
[327055505,1715753432660,-209.34463639,0.000249,2]
[327055506,1715753432669,-253.96441225,0.000249,2]
[327055507,1715753432679,-169.0,0.00024932,2]
[327055508,1715753432688,-306.0,0.00024932,2]
[327055509,1715753432698,-153.0,0.00024932,2]
[327055510,1715753432707,-153.0,0.00024961,2]
[327055511,1715753432717,-306.0,0.00024961,2]
[327055512,1715753432727,-802.1,0.00024988,3]
[327055513,1715753432736,-500.0,0.00024989,2]
[327055514,1715753432746,-500.0,0.00024989,2]
[327055515,1715753432755,-20808.6610459,0.0002499,3]
[327055562,1715753438534,-314.47399217,0.00024989,2]
[327055693,1715754632246,-154.82968734,0.00018976,2]
[327055695,1715754632257,-406.30178098,0.00018976,2]
[327055697,1715754632267,-192.68423976,0.00018977,2]
[327055764,1715754639083,-1851.78392373,0.00018977,2]
[327055766,1715754639096,-69.14776597,0.00018977,2]
[327055768,1715754639106,-531.36807526,0.00018978,2]
[327055770,1715754639117,-1358.80124985,0.00018989,2]
[327055800,1715754640679,-1005.28391519,0.00018989,2]
[327055801,1715754640691,-22525.91483496,0.00018989,2]
[327055802,1715754640702,-239.293394,0.00019374,2]
[327055803,1715754640711,-11016.66637643,0.00020913,2]
[327055804,1715754640720,-150.0,0.00021118,2]
[327055805,1715754640730,-150.0,0.00021689,2]
[327055806,1715754640740,-176.062328,0.00021918,2]
[327055807,1715754640749,-150.0,0.0002226,2]
[327055808,1715754640758,-150.0,0.0002283,2]
[327055809,1715754640768,-1236.80017075,0.00023,2]
[327055810,1715754640777,-153.0,0.00023288,2]
[327055811,1715754640787,-150.0,0.00023401,2]
[327055812,1715754640797,-153.0,0.00023441,2]
[327055813,1715754640807,-153.0,0.00023441,2]
[327055814,1715754640962,-153.0,0.00023441,2]
[327055815,1715754640972,-200.2660357,0.00023562,2]
[327055816,1715754640981,-200.2660357,0.00023578,2]
[327055817,1715754640990,-200.2660357,0.00023781,2]
[327055818,1715754640999,-150.0,0.00023972,3]
[327055819,1715754641009,-153.0,0.00024041,2]
[327055820,1715754641019,-200.2660357,0.00024178,2]
[327055821,1715754641028,-438.766,0.00024215,2]
[327055822,1715754641037,-200.2660357,0.00024384,2]
[327055823,1715754641046,-200.2660357,0.00024384,2]
[327055824,1715754641056,-200.2660357,0.00024384,2]
[327055825,1715754641066,-200.2660357,0.00024384,2]
[327055826,1715754641075,-200.2660357,0.00024384,2]
[327055827,1715754641084,-176.062328,0.00024482,2]
[327055828,1715754641094,-150.0,0.00024543,3]
[327055829,1715754641103,-200.2660357,0.00024603,2]
[327055830,1715754641112,-200.2660357,0.00024603,2]
[327055831,1715754641121,-2744.93316216,0.00024717,2]
[327055832,1715754641131,-500.0,0.00024725,2]
[327055833,1715754641140,-500.0,0.00024725,2]
[327055834,1715754641149,-500.0,0.00024725,2]
[327055835,1715754641159,-500.0,0.00024725,2]
[327055836,1715754641169,-500.0,0.00024725,2]
[327055837,1715754641178,-27.527915,0.00024725,2]
[327055860,1715754643919,-472.472085,0.00024725,2]
[327055861,1715754643929,-500.0,0.00024725,2]
[327055862,1715754643939,-87.93195901,0.00024725,2]
[327055863,1715754643950,-412.06804099,0.00024725,2]
[327055864,1715754643960,-133.23282244,0.00024725,2]
[327055892,1715755656313,522.94149242,9.999e-05,2]
[327055893,1715755677378,803.06229878,9.999e-05,2]
[327055898,1715755770152,395.12068195,9.999e-05,2]
[327056096,1715755846906,-359.38021758,0.0002015,2]
[327056097,1715755848204,1449.81188868,0.0001,2]
[327056098,1715755904805,755.53012246,0.0001,2]
[327056099,1715755917097,154.82968734,9.999e-05,2]
[327056100,1715755918837,244.46987754,0.0001,2]
[327056101,1715755967377,531.36807526,9.999e-05,2]
[327056108,1715756619238,322.29,0.00018,2]
[327056130,1715756944987,803.06229878,9.999e-05,2]
[327056184,1715757032730,-154.82968734,0.00018488,2]
[327056185,1715757032740,-531.36807526,0.00018489,2]
[327056187,1715757032749,-2113.61592946,0.0001849,2]
[327056189,1715757032758,-432.860611,0.00018514,2]
[327056191,1715757032767,-444.8132716,0.00018702,2]
[327056193,1715757032777,-150.0,0.000189,2]
[327056194,1715757032786,-2744.93316216,0.00019931,2]
[327056195,1715757032796,-150.0,0.00019935,2]
[327056197,1715757032805,-416.7728428,0.00019961,2]
[327056199,1715757032816,-8874.75537179,0.00020163,2]
[327056201,1715757032826,-3974.71033268,0.00021,2]
[327056203,1715757032835,-150.0,0.00021155,2]
[327056205,1715757032844,-220.3,0.00021163,2]
[327056207,1715757032854,-220.3,0.0002173,2]
[327056209,1715757032863,-166.6666677,0.00021918,2]
[327056211,1715757032873,-220.3,0.00022296,2]
[327056213,1715757032882,-220.3,0.00022863,2]
[327056214,1715757032891,-204.2509034,0.00023208,2]
[327056215,1715757032901,-204.2509034,0.00023208,2]
[327056216,1715757032910,-204.2509034,0.00023208,2]
[327056217,1715757032919,-205.1718896,0.00023208,2]
[327056218,1715757032928,-204.2509034,0.00023208,2]
[327056219,1715757032938,-204.2509034,0.00023356,2]
[327056220,1715757032947,-220.3,0.0002343,2]
[327056221,1715757032956,-204.2509034,0.00023537,2]
[327056222,1715757032965,-204.2509034,0.00023578,2]
[327056223,1715757032975,-204.2509034,0.00023578,2]
[327056224,1715757032984,-150.0,0.000239,2]
[327056225,1715757032993,-154.82968734,0.00024,2]
[327056226,1715757033002,-1125.0,0.00024,5]
[327056227,1715757033012,-1236.80017075,0.00024029,2]
[327056228,1715757033021,-204.2509034,0.0002403,2]
[327056229,1715757033030,-204.2509034,0.0002403,2]
[327056230,1715757033039,-204.2509034,0.0002403,2]
[327056231,1715757033048,-204.2509034,0.0002403,2]
[327056232,1715757033058,-204.2509034,0.0002403,2]
[327056233,1715757033067,-204.2509034,0.0002403,2]
[327056234,1715757033077,-204.2509034,0.0002403,2]
[327056235,1715757033086,-204.2509034,0.0002403,2]
[327056236,1715757033095,-204.2509034,0.0002403,2]
[327056237,1715757033104,-204.2509034,0.0002403,2]
[327056238,1715757033114,-204.2509034,0.0002403,2]
[327056239,1715757033123,-204.2509034,0.0002403,2]
[327056240,1715757033132,-204.2509034,0.0002403,2]
[327056241,1715757033141,-204.2509034,0.0002403,2]
[327056242,1715757033150,-204.2509034,0.0002403,2]
[327056243,1715757033159,-204.2509034,0.0002403,2]
[327056244,1715757033169,-204.2509034,0.0002403,2]
[327056245,1715757033178,-204.2509034,0.0002403,2]
[327056246,1715757033187,-204.2509034,0.0002403,2]
[327056247,1715757033197,-150.0,0.0002413,2]
[327056248,1715757033206,-150.0,0.0002413,2]
[327056249,1715757033215,-232.261,0.0002413,2]
[327056250,1715757033224,-180.22791367,0.00024259,2]
[327056251,1715757033234,-204.2509034,0.00024359,2]
[327056252,1715757033243,-204.2509034,0.00024359,2]
[327056253,1715757033252,-204.2509034,0.00024359,2]
[327056254,1715757033261,-204.2509034,0.00024359,2]
[327056255,1715757033270,-204.2509034,0.00024359,2]
[327056256,1715757033279,-204.2509034,0.00024359,2]
[327056257,1715757033288,-204.2509034,0.00024359,2]
[327056258,1715757033298,-204.2509034,0.00024359,2]
[327056259,1715757033307,-204.2509034,0.00024359,2]
[327056260,1715757033316,-204.2509034,0.00024359,2]
[327056261,1715757033326,-204.2509034,0.00024359,2]
[327056262,1715757033335,-204.2509034,0.00024359,2]
[327056263,1715757033345,-204.2509034,0.00024359,2]
[327056264,1715757033355,-204.2509034,0.00024359,2]
[327056265,1715757033364,-204.2509034,0.00024359,2]
[327056266,1715757033373,-204.2509034,0.00024359,2]
[327056267,1715757033382,-204.2509034,0.00024359,2]
[327056268,1715757033391,-204.2509034,0.00024359,2]
[327056269,1715757033400,-204.2509034,0.00024359,2]
[327056270,1715757033410,-204.2509034,0.00024359,2]
[327056271,1715757033419,-204.2509034,0.00024359,2]
[327056272,1715757033428,-204.2509034,0.00024359,2]
[327056273,1715757033437,-204.2509034,0.00024359,2]
[327056274,1715757033446,-204.2509034,0.00024359,2]
[327056275,1715757033455,-204.2509034,0.00024359,2]
[327056276,1715757033464,-204.2509034,0.00024359,2]
[327056277,1715757033474,-204.2509034,0.00024359,2]
[327056278,1715757033483,-497.249755,0.00024359,2]
[327056279,1715757033492,-451.1584387,0.00024359,2]
[327056280,1715757033505,-46.0913163,0.00024359,2]
[327056281,1715757033514,-151.0,0.00024359,2]
[327056282,1715757033523,-117.2320208,0.00024359,2]
[327056420,1715757041094,-220.3,0.00023997,3]
[327056421,1715757041103,-33.7679792,0.00024359,2]
[327056422,1715757041114,-220.3,0.00024563,3]
[327056423,1715757041125,-308.21377875,0.00024677,2]
[327056424,1715757041136,-2000.0,0.00024686,2]
[327056425,1715757041146,-151.0,0.00024698,2]
[327056426,1715757041157,-240.120884,0.00024698,2]
[327056427,1715757041166,-850.562716,0.00024698,2]
[327056428,1715757041176,-151.0,0.00024698,2]
[327056429,1715757041188,-850.562716,0.00024698,2]
[327056430,1715757041197,-151.0,0.00024698,2]
[327056431,1715757041206,-151.0,0.00024698,2]
[327056432,1715757041215,-151.0,0.00024698,2]
[327056433,1715757041224,-497.249755,0.00024698,2]
[327056434,1715757041234,-152.670985,0.00024698,2]
[327056435,1715757041244,-497.249755,0.00024698,2]
[327056436,1715757041254,-151.0,0.00024698,2]
[327056437,1715757041263,-232.90669907,0.00024739,2]
[327056438,1715757041273,-151.0,0.00024739,2]
[327056439,1715757041282,-151.0,0.00024739,2]
[327056440,1715757041293,-176.482529,0.00024739,2]
[327056441,1715757041302,-176.482529,0.00024739,2]
[327056442,1715757041311,-151.0,0.00024739,2]
[327056443,1715757041320,-376.461438,0.00024739,2]
[327056444,1715757041330,-376.461438,0.00024739,2]
[327056445,1715757041339,-151.0,0.00024739,2]
[327056446,1715757041349,-151.886493,0.00024739,2]